[Event "Titled Tuesday Blitz August 22 Early 2023"]
[White "Piesik, Piotr"]
[Black "Glavina, Pablo"]
[WhiteFideId "1136194"]
[BlackFideId "100234"]
[WhiteElo "2655"]
[BlackElo "2515"]
[Result "1-0"]
[Round "8"]
[TimeControl "180+1"]
[Date "2023.08.22"]
[WhiteClock "0:00:16"]
[BlackClock "0:00:00"]
[Board "72"]

1. Nf3 {[%clk 0:02:58]}  d6 {[%clk 0:02:59]} 2. d4 {[%clk 0:02:58]}  Nf6 {[%clk 0:02:57]} 3. g3 {[%clk 0:02:58]}  g6 {[%clk 0:02:54]} 4. Bg2 {[%clk 0:02:58]}  Bg7 {[%clk 0:02:55]} 5. O-O {[%clk 0:02:59]}  O-O {[%clk 0:02:55]} 6. Nbd2 {[%clk 0:03:00]}  Nbd7 {[%clk 0:02:51]} 7. e4 {[%clk 0:03:00]}  e5 {[%clk 0:02:51]} 8. dxe5 {[%clk 0:03:01]}  dxe5 {[%clk 0:02:49]} 9. Qe2 {[%clk 0:03:00]}  c6 {[%clk 0:02:45]} 10. a4 {[%clk 0:03:00]}  Qc7 {[%clk 0:02:36]} 11. b3 {[%clk 0:03:00]}  Re8 {[%clk 0:02:33]} 12. Bb2 {[%clk 0:02:59]}  a5 {[%clk 0:02:29]} 13. Nc4 {[%clk 0:02:59]}  b6 {[%clk 0:02:27]} 14. Rfd1 {[%clk 0:02:58]}  Ba6 {[%clk 0:02:27]} 15. Nfd2 {[%clk 0:02:58]}  b5 {[%clk 0:02:09]} 16. axb5 {[%clk 0:02:56]}  cxb5 {[%clk 0:02:10]} 17. Ne3 {[%clk 0:02:54]}  Nc5 {[%clk 0:01:51]} 18. Nd5 {[%clk 0:02:33]}  Nxd5 {[%clk 0:01:50]} 19. exd5 {[%clk 0:02:34]}  Rad8 {[%clk 0:01:46]} 20. Qe3 {[%clk 0:02:26]}  f5 {[%clk 0:01:32]} 21. h4 {[%clk 0:01:36]}  f4 {[%clk 0:01:28]} 22. Qe1 {[%clk 0:01:35]}  Bb7 {[%clk 0:01:14]} 23. Ne4 {[%clk 0:01:31]}  Bxd5 {[%clk 0:01:02]} 24. Rxd5 {[%clk 0:01:23]}  Rxd5 {[%clk 0:01:01]} 25. Nf6+ {[%clk 0:01:23]}  Bxf6 {[%clk 0:01:01]} 26. Bxd5+ {[%clk 0:01:24]}  Kg7 {[%clk 0:01:01]} 27. Qxa5 {[%clk 0:01:22]}  Qd6 {[%clk 0:00:51]} 28. c4 {[%clk 0:00:58]}  Nxb3 {[%clk 0:00:42]} 29. Qxb5 {[%clk 0:00:58]}  Rb8 {[%clk 0:00:30]} 30. Ra7+ {[%clk 0:00:57]}  Kh6 {[%clk 0:00:30]} 31. Qa6 {[%clk 0:00:28]}  Qxa6 {[%clk 0:00:15]} 32. Rxa6 {[%clk 0:00:29]}  Bg7 {[%clk 0:00:14]} 33. g4 {[%clk 0:00:20]}  Nc5 {[%clk 0:00:04]} 34. Ra2 {[%clk 0:00:20]}  Nd3 {[%clk 0:00:03]} 35. Bc3 {[%clk 0:00:19]}  Rb1+ {[%clk 0:00:04]} 36. Kg2 {[%clk 0:00:18]}  Rc1 {[%clk 0:00:02]} 37. Bd2 {[%clk 0:00:18]}  Rd1 {[%clk 0:00:01]} 38. Kf3 {[%clk 0:00:18]}  Ne1+ {[%clk 0:00:01]} 39. Bxe1 {[%clk 0:00:17]}  Rxe1 {[%clk 0:00:02]} 40. c5 {[%clk 0:00:16]}  Rc1 {[%clk 0:00:01]} 41. c6 {[%clk 0:00:17]}  Rc3+ {[%clk 0:00:02]} 42. Kg2 {[%clk 0:00:17]}  Rc5 {[%clk 0:00:02]} 43. Be4 {[%clk 0:00:17]}  g5 {[%clk 0:00:02]} 44. h5 {[%clk 0:00:17]}  Bf6 {[%clk 0:00:02]} 45. f3 {[%clk 0:00:17]}  Bd8 {[%clk 0:00:02]} 46. Ra7 {[%clk 0:00:16]}  Rc2+ {[%clk 0:00:00]} 47. Bxc2 {[%clk 0:00:16]} 1-0


[Site "https://www.chess.com"]

[Event "Titled Tuesday Blitz August 22 Early 2023"]
[White "Mazurkiewicz, Michal"]
[Black "Nasir, Zehn"]
[WhiteFideId "1124943"]
[BlackFideId "2613239"]
[WhiteElo "2511"]
[BlackElo "2651"]
[Result "0-1"]
[Round "8"]
[TimeControl "180+1"]
[Date "2023.08.22"]
[WhiteClock "0:00:06"]
[BlackClock "0:00:15"]
[Board "73"]

1. e4 {[%clk 0:03:00]}  c6 {[%clk 0:02:57]} 2. d3 {[%clk 0:02:58]}  d5 {[%clk 0:02:58]} 3. Nd2 {[%clk 0:02:59]}  e5 {[%clk 0:02:57]} 4. Ngf3 {[%clk 0:02:59]}  Bg4 {[%clk 0:02:56]} 5. h3 {[%clk 0:02:57]}  Bxf3 {[%clk 0:02:55]} 6. Qxf3 {[%clk 0:02:56]}  Nf6 {[%clk 0:02:54]} 7. g4 {[%clk 0:02:55]}  h6 {[%clk 0:02:54]} 8. Bg2 {[%clk 0:02:55]}  Nbd7 {[%clk 0:02:50]} 9. O-O {[%clk 0:02:55]}  dxe4 {[%clk 0:02:40]} 10. Nxe4 {[%clk 0:02:48]}  Nxe4 {[%clk 0:02:40]} 11. Qxe4 {[%clk 0:02:46]}  Bc5 {[%clk 0:02:22]} 12. b4 {[%clk 0:02:33]}  Bd4 {[%clk 0:02:14]} 13. Rb1 {[%clk 0:02:28]}  a6 {[%clk 0:02:09]} 14. a4 {[%clk 0:02:11]}  Nf6 {[%clk 0:02:08]} 15. Qf3 {[%clk 0:02:00]}  Nd5 {[%clk 0:02:05]} 16. b5 {[%clk 0:01:56]}  axb5 {[%clk 0:01:58]} 17. axb5 {[%clk 0:01:54]}  Nc3 {[%clk 0:01:59]} 18. bxc6 {[%clk 0:01:43]}  Nxb1 {[%clk 0:01:56]} 19. cxb7 {[%clk 0:01:43]}  Rb8 {[%clk 0:01:53]} 20. Qc6+ {[%clk 0:01:10]}  Qd7 {[%clk 0:01:46]} 21. Qa6 {[%clk 0:00:04]}  O-O {[%clk 0:01:42]} 22. Be3 {[%clk 0:00:03]}  Nc3 {[%clk 0:01:39]} 23. Bxd4 {[%clk 0:00:02]}  Qxd4 {[%clk 0:01:34]} 24. Kh1 {[%clk 0:00:03]}  Rfe8 {[%clk 0:01:30]} 25. Ra1 {[%clk 0:00:03]}  Qxf2 {[%clk 0:01:24]} 26. Qc6 {[%clk 0:00:03]}  Qd4 {[%clk 0:01:05]} 27. Ra8 {[%clk 0:00:03]}  Red8 {[%clk 0:00:54]} 28. Rxb8 {[%clk 0:00:03]}  Rxb8 {[%clk 0:00:47]} 29. Qc8+ {[%clk 0:00:04]}  Rxc8 {[%clk 0:00:47]} 30. bxc8=Q+ {[%clk 0:00:04]}  Kh7 {[%clk 0:00:47]} 31. Qc4 {[%clk 0:00:05]}  Kg6 {[%clk 0:00:30]} 32. Be4+ {[%clk 0:00:05]}  Nxe4 {[%clk 0:00:19]} 33. Qxd4 {[%clk 0:00:05]}  exd4 {[%clk 0:00:19]} 34. dxe4 {[%clk 0:00:06]}  Kg5 {[%clk 0:00:19]} 35. Kg2 {[%clk 0:00:02]}  Kf4 {[%clk 0:00:19]} 36. Kf2 {[%clk 0:00:03]}  Kxe4 {[%clk 0:00:19]} 37. Ke2 {[%clk 0:00:04]}  g6 {[%clk 0:00:17]} 38. h4 {[%clk 0:00:05]}  Kf4 {[%clk 0:00:15]} 39. Kd3 {[%clk 0:00:04]}  Ke5 {[%clk 0:00:13]} 40. Kc4 {[%clk 0:00:04]}  Ke4 {[%clk 0:00:13]} 41. Kc5 {[%clk 0:00:03]}  f5 {[%clk 0:00:13]} 42. h5 {[%clk 0:00:04]}  gxh5 {[%clk 0:00:12]} 43. gxf5 {[%clk 0:00:04]}  Kxf5 {[%clk 0:00:12]} 44. Kxd4 {[%clk 0:00:05]}  Kf4 {[%clk 0:00:12]} 45. c4 {[%clk 0:00:06]}  h4 {[%clk 0:00:12]} 46. c5 {[%clk 0:00:06]}  h3 {[%clk 0:00:13]} 47. c6 {[%clk 0:00:07]}  h2 {[%clk 0:00:14]} 48. c7 {[%clk 0:00:08]}  h1=Q {[%clk 0:00:14]} 49. c8=Q {[%clk 0:00:08]}  Qd1+ {[%clk 0:00:14]} 50. Kc3 {[%clk 0:00:09]}  Qc1+ {[%clk 0:00:14]} 51. Kd3 {[%clk 0:00:06]}  Qxc8 {[%clk 0:00:15]} 0-1


[Site "https://www.chess.com"]

[Event "Titled Tuesday Blitz August 22 Early 2023"]
[White "only_strong_moves"]
[Black "Tregubov, Pavel V."]
[BlackFideId "4115341"]
[WhiteElo "2512"]
[BlackElo "2648"]
[Result "1-0"]
[Round "8"]
[TimeControl "180+1"]
[Date "2023.08.22"]
[WhiteClock "0:00:10"]
[BlackClock "0:00:00"]
[Board "74"]

1. d4 {[%clk 0:03:00]}  Nf6 {[%clk 0:02:57]} 2. Nc3 {[%clk 0:03:00]}  d5 {[%clk 0:02:55]} 3. Bf4 {[%clk 0:03:00]}  e6 {[%clk 0:02:51]} 4. Nb5 {[%clk 0:03:00]}  Na6 {[%clk 0:02:45]} 5. e3 {[%clk 0:03:00]}  c6 {[%clk 0:02:42]} 6. Nc3 {[%clk 0:03:00]}  Bd6 {[%clk 0:02:34]} 7. Nf3 {[%clk 0:03:00]}  Bxf4 {[%clk 0:02:31]} 8. exf4 {[%clk 0:03:01]}  O-O {[%clk 0:02:21]} 9. Be2 {[%clk 0:03:00]}  c5 {[%clk 0:02:20]} 10. Bxa6 {[%clk 0:02:56]}  bxa6 {[%clk 0:02:20]} 11. dxc5 {[%clk 0:02:50]}  Qa5 {[%clk 0:02:17]} 12. Qd4 {[%clk 0:02:45]}  Rb8 {[%clk 0:02:17]} 13. O-O {[%clk 0:02:14]}  Rb4 {[%clk 0:02:03]} 14. Qd2 {[%clk 0:01:53]}  Qxc5 {[%clk 0:01:52]} 15. b3 {[%clk 0:01:40]}  Bd7 {[%clk 0:01:46]} 16. Ne5 {[%clk 0:01:40]}  Rc8 {[%clk 0:01:44]} 17. Nd3 {[%clk 0:01:37]}  Qxc3 {[%clk 0:01:19]} 18. Qxc3 {[%clk 0:01:38]}  Rxc3 {[%clk 0:01:19]} 19. Nxb4 {[%clk 0:01:38]}  a5 {[%clk 0:01:14]} 20. Nd3 {[%clk 0:01:38]}  Rxc2 {[%clk 0:01:15]} 21. Rfc1 {[%clk 0:01:36]}  Rd2 {[%clk 0:01:15]} 22. Ne5 {[%clk 0:01:33]}  Be8 {[%clk 0:01:03]} 23. Rc8 {[%clk 0:01:29]}  Kf8 {[%clk 0:01:02]} 24. f3 {[%clk 0:01:22]}  Nh5 {[%clk 0:00:52]} 25. g3 {[%clk 0:01:20]}  f6 {[%clk 0:00:52]} 26. Nd7+ {[%clk 0:01:14]}  Ke7 {[%clk 0:00:52]} 27. Nc5 {[%clk 0:01:15]}  g5 {[%clk 0:00:44]} 28. Re1 {[%clk 0:01:13]}  Ng7 {[%clk 0:00:42]} 29. Rc7+ {[%clk 0:01:05]}  Kd6 {[%clk 0:00:41]} 30. Rxg7 {[%clk 0:01:05]}  Kxc5 {[%clk 0:00:41]} 31. fxg5 {[%clk 0:01:03]}  fxg5 {[%clk 0:00:38]} 32. Rxg5 {[%clk 0:00:56]}  Kd6 {[%clk 0:00:29]} 33. Rg8 {[%clk 0:00:51]}  Bg6 {[%clk 0:00:28]} 34. Ra8 {[%clk 0:00:46]}  Rxa2 {[%clk 0:00:25]} 35. Rxa7 {[%clk 0:00:47]}  d4 {[%clk 0:00:23]} 36. Ra6+ {[%clk 0:00:46]}  Kc5 {[%clk 0:00:23]} 37. Rc1+ {[%clk 0:00:26]}  Kb4 {[%clk 0:00:20]} 38. Rc4+ {[%clk 0:00:20]}  Kb5 {[%clk 0:00:14]} 39. Rxe6 {[%clk 0:00:15]}  d3 {[%clk 0:00:12]} 40. Rd4 {[%clk 0:00:13]}  Rb2 {[%clk 0:00:06]} 41. f4 {[%clk 0:00:13]}  Kc5 {[%clk 0:00:04]} 42. Red6 {[%clk 0:00:11]}  Rxb3 {[%clk 0:00:03]} 43. f5 {[%clk 0:00:11]}  Bh5 {[%clk 0:00:00]} 44. Rxd3 {[%clk 0:00:10]} 1-0


[Site "https://www.chess.com"]

[Event "Titled Tuesday Blitz August 22 Early 2023"]
[White "Gavilan Diaz, Mario"]
[Black "Frolyanov, Dmitry"]
[WhiteFideId "2260905"]
[BlackFideId "4151976"]
[WhiteElo "2497"]
[BlackElo "2641"]
[Result "0-1"]
[Round "8"]
[TimeControl "180+1"]
[Date "2023.08.22"]
[WhiteClock "0:00:02"]
[BlackClock "0:00:35"]
[Board "76"]

1. d4 {[%clk 0:03:00]}  d5 {[%clk 0:02:59]} 2. c4 {[%clk 0:03:00]}  e6 {[%clk 0:02:59]} 3. Nc3 {[%clk 0:03:01]}  c6 {[%clk 0:02:59]} 4. e4 {[%clk 0:02:59]}  dxe4 {[%clk 0:03:00]} 5. Nxe4 {[%clk 0:03:00]}  Bb4+ {[%clk 0:03:00]} 6. Nc3 {[%clk 0:02:57]}  e5 {[%clk 0:02:58]} 7. Nf3 {[%clk 0:02:52]}  Nd7 {[%clk 0:02:54]} 8. Be2 {[%clk 0:02:33]}  exd4 {[%clk 0:02:24]} 9. Qxd4 {[%clk 0:02:32]}  Ngf6 {[%clk 0:02:18]} 10. O-O {[%clk 0:02:30]}  O-O {[%clk 0:02:17]} 11. Bg5 {[%clk 0:02:26]}  h6 {[%clk 0:02:17]} 12. Bh4 {[%clk 0:02:24]}  Qb6 {[%clk 0:02:11]} 13. Qf4 {[%clk 0:02:12]}  Bxc3 {[%clk 0:02:05]} 14. bxc3 {[%clk 0:02:12]}  Qb2 {[%clk 0:02:05]} 15. Nd4 {[%clk 0:01:44]}  Qxc3 {[%clk 0:01:45]} 16. Nf5 {[%clk 0:01:44]}  Qe5 {[%clk 0:01:35]} 17. Qxe5 {[%clk 0:01:43]}  Nxe5 {[%clk 0:01:36]} 18. Nxh6+ {[%clk 0:01:43]}  Kh7 {[%clk 0:01:29]} 19. f4 {[%clk 0:01:17]}  Kxh6 {[%clk 0:01:02]} 20. fxe5 {[%clk 0:01:13]}  Ng4 {[%clk 0:01:00]} 21. Bg3 {[%clk 0:00:59]}  Kh7 {[%clk 0:00:48]} 22. Rf4 {[%clk 0:00:43]}  Nh6 {[%clk 0:00:47]} 23. Raf1 {[%clk 0:00:41]}  Be6 {[%clk 0:00:47]} 24. c5 {[%clk 0:00:29]}  Rad8 {[%clk 0:00:45]} 25. Rb1 {[%clk 0:00:27]}  Rd2 {[%clk 0:00:44]} 26. Bf1 {[%clk 0:00:26]}  Rxa2 {[%clk 0:00:39]} 27. Rxb7 {[%clk 0:00:24]}  Rd8 {[%clk 0:00:39]} 28. h3 {[%clk 0:00:17]}  Rd1 {[%clk 0:00:39]} 29. Kh2 {[%clk 0:00:15]}  Raa1 {[%clk 0:00:38]} 30. Kg1 {[%clk 0:00:11]}  Bc4 {[%clk 0:00:38]} 31. Rbxf7 {[%clk 0:00:04]}  Nxf7 {[%clk 0:00:36]} 32. Rxc4 {[%clk 0:00:01]}  Rxf1+ {[%clk 0:00:35]} 33. Kh2 {[%clk 0:00:02]}  Rh1# {[%clk 0:00:35]} 0-1


[Site "https://www.chess.com"]

[Event "Titled Tuesday Blitz August 22 Early 2023"]
[White "Reprintsev, Alexander"]
[Black "Aaditya Dhingra"]
[WhiteFideId "14100541"]
[BlackFideId "25678191"]
[WhiteElo "2489"]
[BlackElo "2639"]
[Result "1-0"]
[Round "8"]
[TimeControl "180+1"]
[Date "2023.08.22"]
[WhiteClock "0:01:24"]
[BlackClock "0:01:15"]
[Board "77"]

1. e4 {[%clk 0:03:00]}  c5 {[%clk 0:02:58]} 2. b3 {[%clk 0:02:58]}  Nc6 {[%clk 0:02:56]} 3. Bb2 {[%clk 0:02:58]}  d6 {[%clk 0:02:54]} 4. Bb5 {[%clk 0:02:57]}  Bd7 {[%clk 0:02:54]} 5. Ne2 {[%clk 0:02:57]}  a6 {[%clk 0:02:52]} 6. Bxc6 {[%clk 0:02:56]}  Bxc6 {[%clk 0:02:52]} 7. f3 {[%clk 0:02:56]}  Nf6 {[%clk 0:02:50]} 8. d4 {[%clk 0:02:56]}  cxd4 {[%clk 0:02:50]} 9. Nxd4 {[%clk 0:02:56]}  Bd7 {[%clk 0:02:49]} 10. c4 {[%clk 0:02:55]}  e6 {[%clk 0:02:49]} 11. Nc3 {[%clk 0:02:55]}  Be7 {[%clk 0:02:44]} 12. Qd2 {[%clk 0:02:52]}  O-O {[%clk 0:02:43]} 13. h4 {[%clk 0:02:46]}  Rb8 {[%clk 0:02:30]} 14. a4 {[%clk 0:02:41]}  Re8 {[%clk 0:02:26]} 15. g4 {[%clk 0:02:35]}  Bc6 {[%clk 0:02:19]} 16. O-O-O {[%clk 0:02:28]}  Nd7 {[%clk 0:02:13]} 17. g5 {[%clk 0:02:15]}  Nc5 {[%clk 0:02:12]} 18. Qc2 {[%clk 0:02:15]}  Qb6 {[%clk 0:02:08]} 19. Ba3 {[%clk 0:02:10]}  Rbc8 {[%clk 0:01:57]} 20. b4 {[%clk 0:02:03]}  Nxa4 {[%clk 0:01:52]} 21. Nxa4 {[%clk 0:02:02]}  Bxa4 {[%clk 0:01:52]} 22. Qxa4 {[%clk 0:02:01]}  Rxc4+ {[%clk 0:01:52]} 23. Nc2 {[%clk 0:01:59]}  Rec8 {[%clk 0:01:51]} 24. Rh2 {[%clk 0:01:59]}  Qe3+ {[%clk 0:01:45]} 25. Kb1 {[%clk 0:01:58]}  Qxf3 {[%clk 0:01:45]} 26. Rdd2 {[%clk 0:01:51]}  Qxe4 {[%clk 0:01:41]} 27. Bb2 {[%clk 0:01:43]}  d5 {[%clk 0:01:36]} 28. Rde2 {[%clk 0:01:28]}  Qd3 {[%clk 0:01:32]} 29. Qa3 {[%clk 0:01:25]}  Qf3 {[%clk 0:01:15]} 30. Qxf3 {[%clk 0:01:24]} 1-0


[Site "https://www.chess.com"]

[Event "Titled Tuesday Blitz August 22 Early 2023"]
[White "Arencibia Monduy, Antonio"]
[Black "Yurovskykh, Oleksandr"]
[WhiteFideId "3507939"]
[BlackFideId "14134020"]
[WhiteElo "2453"]
[BlackElo "2586"]
[Result "0-1"]
[Round "8"]
[TimeControl "180+1"]
[Date "2023.08.22"]
[WhiteClock "0:00:00"]
[BlackClock "0:00:09"]
[Board "84"]

1. e4 {[%clk 0:03:00]}  d5 {[%clk 0:02:59]} 2. exd5 {[%clk 0:03:00]}  Nf6 {[%clk 0:02:59]} 3. Nf3 {[%clk 0:03:00]}  Nxd5 {[%clk 0:02:59]} 4. d4 {[%clk 0:02:59]}  g6 {[%clk 0:02:59]} 5. Be2 {[%clk 0:02:56]}  Bg7 {[%clk 0:02:59]} 6. O-O {[%clk 0:02:56]}  O-O {[%clk 0:02:59]} 7. c3 {[%clk 0:02:56]}  Nd7 {[%clk 0:02:46]} 8. Na3 {[%clk 0:02:51]}  b6 {[%clk 0:02:39]} 9. Re1 {[%clk 0:02:48]}  Bb7 {[%clk 0:02:38]} 10. Bg5 {[%clk 0:02:43]}  h6 {[%clk 0:02:31]} 11. Bd2 {[%clk 0:02:36]}  Kh7 {[%clk 0:02:21]} 12. Nc4 {[%clk 0:02:30]}  c5 {[%clk 0:02:16]} 13. Rc1 {[%clk 0:02:19]}  cxd4 {[%clk 0:02:10]} 14. cxd4 {[%clk 0:02:16]}  Rc8 {[%clk 0:02:08]} 15. b3 {[%clk 0:01:55]}  N7f6 {[%clk 0:01:51]} 16. Bd3 {[%clk 0:01:48]}  e6 {[%clk 0:01:35]} 17. h3 {[%clk 0:01:47]}  Qe7 {[%clk 0:01:30]} 18. Nfe5 {[%clk 0:01:42]}  Rc7 {[%clk 0:01:26]} 19. Bb1 {[%clk 0:01:30]}  Rfc8 {[%clk 0:01:24]} 20. Qe2 {[%clk 0:01:28]}  Kg8 {[%clk 0:00:43]} 21. a4 {[%clk 0:01:13]}  Ba8 {[%clk 0:00:27]} 22. Rcd1 {[%clk 0:01:12]}  Bb7 {[%clk 0:00:27]} 23. Qd3 {[%clk 0:01:10]}  Ba8 {[%clk 0:00:27]} 24. Qg3 {[%clk 0:01:06]}  a6 {[%clk 0:00:24]} 25. Re2 {[%clk 0:00:55]}  b5 {[%clk 0:00:24]} 26. axb5 {[%clk 0:00:55]}  axb5 {[%clk 0:00:25]} 27. Nxg6 {[%clk 0:00:50]}  fxg6 {[%clk 0:00:21]} 28. Ne5 {[%clk 0:00:50]}  g5 {[%clk 0:00:18]} 29. h4 {[%clk 0:00:49]}  Nf4 {[%clk 0:00:17]} 30. Bxf4 {[%clk 0:00:49]}  gxf4 {[%clk 0:00:17]} 31. Qxf4 {[%clk 0:00:47]}  Nd5 {[%clk 0:00:17]} 32. Qe4 {[%clk 0:00:48]}  Bxe5 {[%clk 0:00:15]} 33. dxe5 {[%clk 0:00:47]}  Nc3 {[%clk 0:00:09]} 34. Qg6+ {[%clk 0:00:47]}  Qg7 {[%clk 0:00:09]} 35. Qxe6+ {[%clk 0:00:47]}  Kh8 {[%clk 0:00:10]} 36. Re4 {[%clk 0:00:13]}  Nxe4 {[%clk 0:00:09]} 37. f3 {[%clk 0:00:13]}  Nc3 {[%clk 0:00:09]} 38. Rd7 {[%clk 0:00:12]}  Rxd7 {[%clk 0:00:08]} 39. Qf5 {[%clk 0:00:12]}  Rf8 {[%clk 0:00:07]} 40. Qh3 {[%clk 0:00:10]}  Bxf3 {[%clk 0:00:07]} 41. Kh2 {[%clk 0:00:10]}  Qxg2+ {[%clk 0:00:07]} 42. Qxg2 {[%clk 0:00:10]}  Bxg2 {[%clk 0:00:08]} 43. Kxg2 {[%clk 0:00:00]}  Nxb1 {[%clk 0:00:09]} 0-1


[Site "https://www.chess.com"]

[Event "Titled Tuesday Blitz August 22 Early 2023"]
[White "NovoselovRoman"]
[Black "Zenin, Dmitry"]
[BlackFideId "4127897"]
[WhiteElo "2584"]
[BlackElo "2442"]
[Result "1-0"]
[Round "8"]
[TimeControl "180+1"]
[Date "2023.08.22"]
[WhiteClock "0:00:20"]
[BlackClock "0:00:03"]
[Board "85"]

1. e4 {[%clk 0:02:55]}  e5 {[%clk 0:02:59]} 2. Nf3 {[%clk 0:02:55]}  Nc6 {[%clk 0:02:59]} 3. Bc4 {[%clk 0:02:55]}  Bc5 {[%clk 0:02:59]} 4. d3 {[%clk 0:02:53]}  Nf6 {[%clk 0:02:58]} 5. Nc3 {[%clk 0:02:53]}  a6 {[%clk 0:02:56]} 6. Bg5 {[%clk 0:02:53]}  h6 {[%clk 0:02:46]} 7. Bh4 {[%clk 0:02:54]}  d6 {[%clk 0:02:37]} 8. Qd2 {[%clk 0:02:38]}  Bb4 {[%clk 0:02:14]} 9. a3 {[%clk 0:02:34]}  Bxc3 {[%clk 0:02:14]} 10. Qxc3 {[%clk 0:02:30]}  Bg4 {[%clk 0:02:14]} 11. Qb3 {[%clk 0:02:01]}  O-O {[%clk 0:02:13]} 12. Qxb7 {[%clk 0:01:56]}  Na5 {[%clk 0:02:13]} 13. Qb4 {[%clk 0:01:54]}  Nxc4 {[%clk 0:02:12]} 14. Qxc4 {[%clk 0:01:53]}  Bxf3 {[%clk 0:02:12]} 15. gxf3 {[%clk 0:01:53]}  g5 {[%clk 0:02:12]} 16. Rg1 {[%clk 0:01:49]}  Kh7 {[%clk 0:02:06]} 17. Bg3 {[%clk 0:01:48]}  Nh5 {[%clk 0:02:04]} 18. O-O-O {[%clk 0:01:47]}  Qe7 {[%clk 0:01:57]} 19. d4 {[%clk 0:01:45]}  f6 {[%clk 0:01:54]} 20. Rd3 {[%clk 0:01:40]}  Ng7 {[%clk 0:01:43]} 21. h4 {[%clk 0:01:39]}  Ne6 {[%clk 0:01:35]} 22. hxg5 {[%clk 0:01:37]}  hxg5 {[%clk 0:01:32]} 23. c3 {[%clk 0:01:16]}  a5 {[%clk 0:01:29]} 24. Rdd1 {[%clk 0:01:13]}  Kg6 {[%clk 0:01:09]} 25. Rde1 {[%clk 0:00:56]}  Rab8 {[%clk 0:00:49]} 26. d5 {[%clk 0:00:51]}  Nc5 {[%clk 0:00:48]} 27. f4 {[%clk 0:00:51]}  Kf7 {[%clk 0:00:29]} 28. fxg5 {[%clk 0:00:51]}  fxg5 {[%clk 0:00:29]} 29. Qe2 {[%clk 0:00:39]}  Rh8 {[%clk 0:00:21]} 30. f3 {[%clk 0:00:35]}  a4 {[%clk 0:00:18]} 31. Rh1 {[%clk 0:00:35]}  Qf6 {[%clk 0:00:17]} 32. Bf2 {[%clk 0:00:33]}  Nb3+ {[%clk 0:00:16]} 33. Kc2 {[%clk 0:00:32]}  Rxh1 {[%clk 0:00:14]} 34. Rxh1 {[%clk 0:00:32]}  Rh8 {[%clk 0:00:15]} 35. Rxh8 {[%clk 0:00:30]}  Qxh8 {[%clk 0:00:15]} 36. Be3 {[%clk 0:00:27]}  Kg6 {[%clk 0:00:13]} 37. Qg2 {[%clk 0:00:26]}  Qh5 {[%clk 0:00:13]} 38. Kd3 {[%clk 0:00:23]}  Qh4 {[%clk 0:00:11]} 39. Kc4 {[%clk 0:00:21]}  Nc5 {[%clk 0:00:06]} 40. Bxc5 {[%clk 0:00:20]}  dxc5 {[%clk 0:00:03]} 41. Kxc5 {[%clk 0:00:20]} 1-0


[Site "https://www.chess.com"]

[Event "Titled Tuesday Blitz August 22 Early 2023"]
[White "Bashirli, Saadat"]
[Black "Eynullayev, Altay"]
[WhiteFideId "13429990"]
[BlackFideId "13413562"]
[WhiteElo "2368"]
[BlackElo "2569"]
[Result "0-1"]
[Round "8"]
[TimeControl "180+1"]
[Date "2023.08.22"]
[WhiteClock "0:00:18"]
[BlackClock "0:00:05"]
[Board "89"]

1. d4 {[%clk 0:03:00]}  Nf6 {[%clk 0:03:00]} 2. e3 {[%clk 0:03:00]}  e6 {[%clk 0:03:00]} 3. f4 {[%clk 0:02:58]}  c5 {[%clk 0:02:58]} 4. c3 {[%clk 0:02:57]}  d5 {[%clk 0:02:58]} 5. Bd3 {[%clk 0:02:56]}  b6 {[%clk 0:02:57]} 6. Qe2 {[%clk 0:02:55]}  Bd6 {[%clk 0:02:55]} 7. Nf3 {[%clk 0:02:54]}  O-O {[%clk 0:02:55]} 8. Nbd2 {[%clk 0:02:53]}  Bb7 {[%clk 0:02:56]} 9. Ne5 {[%clk 0:02:50]}  Qc8 {[%clk 0:02:54]} 10. O-O {[%clk 0:02:39]}  Ba6 {[%clk 0:02:54]} 11. b3 {[%clk 0:02:38]}  Bxd3 {[%clk 0:02:54]} 12. Qxd3 {[%clk 0:02:37]}  Qb7 {[%clk 0:02:51]} 13. Bb2 {[%clk 0:02:34]}  Nc6 {[%clk 0:02:43]} 14. Rac1 {[%clk 0:02:30]}  Ne7 {[%clk 0:02:43]} 15. Rfe1 {[%clk 0:02:28]}  Ne4 {[%clk 0:02:19]} 16. Nxe4 {[%clk 0:02:24]}  dxe4 {[%clk 0:02:19]} 17. Qb1 {[%clk 0:02:22]}  b5 {[%clk 0:02:07]} 18. Red1 {[%clk 0:02:08]}  Rfd8 {[%clk 0:02:03]} 19. h3 {[%clk 0:02:02]}  h5 {[%clk 0:01:55]} 20. dxc5 {[%clk 0:00:54]}  Bxc5 {[%clk 0:01:50]} 21. Rxd8+ {[%clk 0:00:47]}  Rxd8 {[%clk 0:01:48]} 22. Rd1 {[%clk 0:00:42]}  Bxe3+ {[%clk 0:01:11]} 23. Kh1 {[%clk 0:00:41]}  Rxd1+ {[%clk 0:01:09]} 24. Qxd1 {[%clk 0:00:40]}  Nf5 {[%clk 0:00:21]} 25. Qd8+ {[%clk 0:00:27]}  Kh7 {[%clk 0:00:22]} 26. g4 {[%clk 0:00:27]}  hxg4 {[%clk 0:00:19]} 27. hxg4 {[%clk 0:00:26]}  Ng3+ {[%clk 0:00:11]} 28. Kg2 {[%clk 0:00:22]}  Bxf4 {[%clk 0:00:06]} 29. Qh4+ {[%clk 0:00:22]}  Kg8 {[%clk 0:00:06]} 30. Qd8+ {[%clk 0:00:22]}  Kh7 {[%clk 0:00:07]} 31. Qh4+ {[%clk 0:00:22]}  Bh6 {[%clk 0:00:06]} 32. Qxg3 {[%clk 0:00:22]}  e3+ {[%clk 0:00:06]} 33. Qf3 {[%clk 0:00:21]}  Qc7 {[%clk 0:00:06]} 34. c4 {[%clk 0:00:20]}  bxc4 {[%clk 0:00:05]} 35. bxc4 {[%clk 0:00:20]}  Qb6 {[%clk 0:00:05]} 36. Qe2 {[%clk 0:00:19]}  Qb7+ {[%clk 0:00:03]} 37. Nf3 {[%clk 0:00:20]}  Bf4 {[%clk 0:00:03]} 38. Bd4 {[%clk 0:00:19]}  Qe4 {[%clk 0:00:03]} 39. Bc3 {[%clk 0:00:18]}  g5 {[%clk 0:00:04]} 40. Bb2 {[%clk 0:00:18]}  f5 {[%clk 0:00:04]} 41. gxf5 {[%clk 0:00:18]}  exf5 {[%clk 0:00:04]} 42. Kf1 {[%clk 0:00:18]}  g4 {[%clk 0:00:04]} 43. Ne1 {[%clk 0:00:18]}  Qh1# {[%clk 0:00:05]} 0-1


[Site "https://www.chess.com"]